bitfinex-derivatives/quotes_ETHF0:USTF0_20250114
["timestamp","ask_amount","ask_price","bid_price","bid_amount"]
[1736886326830,0.3102,3225.5,3225.4,41.1102]
[1736886327626,3.49934635,3225.5,3225.2,0.31022]
[1736886327830,0.31021,3225.4,3225.3,0.31021]
[1736886328031,0.31023,3225.3,3225.2,0.31022]
[1736886328226,0.31023,3225.3,3225.2,41.11022]
[1736886328529,0.31023,3225.3,3225.0,3.26162722]
[1736886328530,0.31023,3225.1,3225.0,3.26162722]
[1736886328835,3.26227071,3225.3,3225.0,2.95138722]
[1736886329136,0.31022,3225.3,3225.0,43.75138722]
[1736886329429,0.31023,3225.2,3225.0,44.06161722]
[1736886329629,0.31023,3225.1,3225.0,44.06161722]
[1736886329934,0.9086,3225.6,3225.5,0.31019]
[1736886330135,3.51795,3226.0,3225.8,0.31016]
[1736886330435,3.51795,3226.0,3225.9,0.31016]
[1736886330728,3.51795,3226.0,3225.9,2.95138722]
[1736886330930,3.51795,3226.0,3225.9,3.26154722]
[1736886331126,3.51795,3226.0,3225.9,44.06154722]
[1736886331538,0.31011,3226.4,3226.3,0.31011]
[1736886332037,1.2613,3226.5,3226.4,0.31011]
[1736886332733,0.9512,3226.5,3225.9,46.95918722]
[1736886332931,0.9512,3226.5,3226.2,0.31012]
[1736886332932,0.31013,3226.3,3226.2,0.31012]
[1736886333136,4.1900485,3226.5,3226.2,0.31012]
[1736886333137,3.2388485,3226.5,3226.2,2.95138722]
[1736886333331,3.2388485,3226.5,3226.4,0.31011]
[1736886333928,3.2388485,3226.5,3226.3,0.4658]
[1736886334130,3.2388485,3226.5,3225.6,2.95138722]
[1736886334430,0.31015,3226.0,3225.6,2.95138722]
[1736886334631,0.31015,3226.0,3225.8,0.31016]
[1736886334832,3.77221348,3225.9,3225.8,40.8]
[1736886335138,4.23211348,3225.9,3225.8,40.8]
[1736886335331,0.77006,3225.9,3225.8,40.8]
[1736886336131,0.31018,3225.7,3225.6,2.95138722]
[1736886336637,0.31019,3225.5,3225.4,3.2078]
[1736886337033,3.89938654,3225.5,3225.4,3.2078]
[1736886337234,3.58919654,3225.5,3225.4,3.518]
[1736886337533,0.31016,3225.9,3225.7,0.31017]
[1736886337731,1.4332,3226.1,3225.6,2.95138722]
[1736886337942,3.39913425,3225.8,3225.7,0.31018]
[1736886338130,3.39913425,3226.1,3225.7,41.11018]
[1736886338330,3.2078,3226.2,3225.8,0.466]
[1736886338532,4.641,3226.6,3225.9,3.98318]
[1736886338737,0.31012,3226.3,3226.2,0.31013]
[1736886338939,0.31012,3226.3,3226.1,0.31013]
[1736886339131,3.56720412,3226.3,3225.9,3.2078]
[1736886339326,3.56720412,3226.3,3226.2,0.31013]
[1736886339527,0.31007,3226.8,3226.6,0.31008]
[1736886339827,0.31007,3226.8,3226.7,0.31008]
[1736886340135,3.67439663,3226.7,3226.6,0.31008]
[1736886340336,3.67439663,3226.7,3226.5,0.4774]
[1736886340337,3.36431663,3226.7,3226.5,0.4774]
[1736886340535,0.31008,3226.7,3226.6,0.31009]
[1736886340737,0.944,3226.9,3226.5,0.4774]
[1736886341033,3.67438663,3226.8,3226.7,0.31008]
[1736886341236,3.36431663,3226.8,3226.5,0.4774]
[1736886341432,0.31009,3226.6,3226.5,0.31009]
[1736886341834,3.88728902,3226.6,3226.5,0.31009]
[1736886342241,3.57719902,3226.6,3226.5,0.31009]
[1736886342642,0.31009,3226.7,3226.5,0.31009]
[1736886342833,3.22712612,3226.6,3226.5,0.3101]
[1736886347238,3.22712612,3226.6,3226.2,0.4774]
[1736886347438,3.22712612,3226.6,3226.0,2.43767932]
[1736886347439,0.31014,3226.1,3226.0,2.43767932]
[1736886348543,0.31015,3226.0,3225.9,0.31016]
[1736886348737,3.3861264,3226.1,3225.9,0.31016]
[1736886348944,3.3861264,3226.0,3225.8,0.4778]
[1736886349143,3.3861264,3226.0,3225.8,0.78796]
[1736886349332,0.31015,3226.0,3225.8,0.78796]
[1736886349745,3.32746035,3225.9,3225.8,0.78796]
[1736886350240,0.31016,3225.9,3225.8,0.4778]
[1736886350442,0.31015,3226.0,3225.8,0.4778]
[1736886350636,3.54803168,3225.9,3225.8,0.78796]
[1736886351546,0.79003,3226.2,3226.0,0.31014]
[1736886351742,0.79003,3226.2,3226.1,2.43767932]
[1736886352143,4.18955503,3226.2,3226.1,2.43767932]
[1736886352339,3.87942503,3226.2,3226.1,2.43767932]
[1736886352538,4.18955503,3226.2,3226.1,2.74781932]
[1736886353045,4.18955503,3226.2,3226.1,2.43767932]
[1736886353242,3.87942503,3226.2,3225.8,2.43767932]
[1736886353438,0.31016,3226.0,3225.9,0.31016]
[1736886353635,0.31016,3225.9,3225.8,2.43767932]
[1736886353842,3.36610032,3226.0,3225.8,2.43767932]
[1736886354135,3.67626032,3225.9,3225.8,2.74783932]
[1736886354442,0.31016,3225.9,3225.8,2.74783932]
[1736886354643,3.71184685,3225.9,3225.8,2.74783932]
[1736886354841,3.71184685,3225.9,3225.8,2.43767932]
[1736886357339,3.71184685,3225.9,3225.8,2.74784932]
[1736886357644,3.71184685,3225.9,3225.8,2.43767932]
[1736886357837,3.40168685,3225.9,3225.5,3.2078]
[1736886358039,0.31021,3225.3,3225.2,2.43767932]
[1736886358446,3.22836116,3225.3,3225.0,0.4784]
[1736886358640,3.22836116,3225.3,3225.2,2.43767932]
[1736886358833,0.77358,3225.7,3225.5,0.31019]
[1736886359045,0.4634,3225.7,3225.5,5.64547932]
[1736886359346,3.22836116,3225.6,3225.5,5.64547932]
[1736886359741,3.53855116,3225.6,3225.5,5.64547932]
[1736886361139,3.53855116,3225.6,3225.5,46.44547932]
[1736886361538,3.22836116,3225.6,3225.2,2.43767932]
[1736886361743,3.22836116,3225.6,3225.0,0.4784]
[1736886361744,0.31023,3225.1,3225.0,0.4784]
[1736886362141,0.31023,3225.1,3225.0,41.58864]
[1736886362845,0.31023,3225.2,3225.1,0.31023]
[1736886363046,0.31023,3225.2,3225.1,2.74790932]
[1736886363644,3.30868862,3225.4,3224.9,3.2078]
[1736886363844,0.31024,3225.0,3224.9,3.2078]
[1736886364141,3.74768172,3225.0,3224.9,40.8]
[1736886364748,0.31027,3224.8,3224.7,0.31027]
[1736886365050,0.31025,3224.9,3224.6,40.8]
[1736886365348,0.31027,3224.7,3224.6,40.8]
[1736886367346,0.31027,3224.7,3224.6,41.11028]
[1736886369145,3.99527827,3224.9,3224.6,40.8]
[1736886369342,3.51527827,3224.9,3224.8,2.74793932]
[1736886369646,0.31022,3225.3,3225.2,0.31022]
[1736886369853,3.2078,3225.4,3225.1,2.43767932]
[1736886370051,3.90496983,3225.3,3225.2,40.8]
[1736886370554,3.90496983,3225.3,3224.2,1.55159]
[1736886370555,8.59475983,3225.3,3224.1,3.2078]
[1736886370743,3.2078,3224.2,3223.7,3.6602]
[1736886371049,0.31034,3224.0,3223.7,6.09787932]
[1736886371250,0.31036,3223.9,3223.7,6.40823932]
[1736886371451,0.31036,3223.8,3223.7,3.6602]
[1736886371845,0.31035,3223.9,3223.8,0.31036]
[1736886372050,0.31036,3223.8,3223.7,3.97057]
[1736886372245,3.2078,3223.8,3223.3,0.01141]
[1736886372448,7.0172549,3223.8,3223.7,0.31037]
[1736886372649,3.4990949,3223.8,3223.7,0.31037]
[1736886372851,3.4990949,3223.8,3223.7,41.11037]
[1736886373045,0.31036,3223.9,3223.7,41.11037]
[1736886373357,3.2078,3224.2,3223.7,41.11037]
[1736886373358,3.87882732,3223.8,3223.7,40.8]
[1736886373560,3.56846732,3223.8,3223.7,41.11037]
[1736886373756,3.56846732,3224.1,3224.0,0.31034]
[1736886373956,0.31032,3224.2,3224.0,2.74801932]
[1736886374153,1.4491,3224.4,3224.2,0.31032]
[1736886374154,0.31032,3224.3,3224.2,0.31032]
[1736886374454,3.69571146,3224.3,3224.1,0.4652]
[1736886374664,3.38539146,3224.3,3224.2,0.31032]
[1736886375257,3.38539146,3224.3,3224.2,3.51812]
[1736886375453,0.31029,3224.5,3224.2,3.2078]
[1736886375759,0.3103,3224.5,3224.3,2.74797932]
[1736886375952,3.2078,3224.6,3224.4,41.1103]
[1736886376150,3.51809,3224.6,3224.5,0.31029]
[1736886376460,0.31029,3224.5,3224.4,0.3103]
[1736886376672,0.31029,3224.5,3224.4,41.1103]
[1736886376972,0.31029,3224.5,3224.4,40.8]
[1736886378172,3.85663005,3224.5,3224.4,40.8]
[1736886378469,0.77576,3224.4,3223.8,3.51815]
[1736886378666,0.31035,3223.9,3223.8,3.51815]
[1736886378873,0.31035,3223.9,3223.8,44.31815]
[1736886379067,0.31035,3223.9,3223.8,44.0078]
[1736886379267,3.2078,3224.2,3223.7,0.4754]
[1736886379566,0.31039,3223.5,3223.4,3.5182]
[1736886379862,0.31039,3223.5,3223.4,5.95587932]
[1736886380067,0.31039,3223.5,3223.4,3.2078]
[1736886380262,0.31038,3223.6,3223.5,0.31039]
[1736886380467,0.31038,3223.6,3223.4,3.2078]
[1736886380468,1.26433,3224.1,3223.4,5.64547932]
[1736886380668,3.50006479,3224.0,3223.4,5.64547932]
[1736886380864,0.31036,3223.8,3223.7,0.31036]
[1736886381469,0.31037,3223.7,3223.6,0.31037]
[1736886381969,0.31038,3223.6,3223.5,0.31038]
[1736886382170,3.86121464,3223.7,3223.5,0.31038]
[1736886382473,0.31038,3223.7,3223.5,0.31038]
[1736886382767,0.31036,3223.8,3223.6,0.31037]
[1736886382963,0.31037,3223.7,3223.6,40.8]
[1736886383165,3.82719251,3223.7,3223.6,40.8]
[1736886383365,0.31037,3223.7,3223.6,40.8]
[1736886383762,3.5863251,3223.7,3223.6,40.8]
[1736886384372,3.5863251,3223.7,3223.6,41.11038]
[1736886384569,3.2759551,3223.7,3223.4,5.64547932]
[1736886384871,0.31039,3223.5,3223.1,3.71829932]
[1736886385072,1.24055,3223.6,3223.2,40.8]
[1736886385375,3.34509743,3223.4,3223.3,0.31041]
[1736886385572,6.50259352,3223.7,3223.6,0.31038]
[1736886385777,3.2078,3223.7,3223.6,2.74805932]
[1736886385970,6.50259352,3223.7,3223.6,2.74805932]
[1736886386372,3.29479352,3223.7,3223.6,2.74805932]
[1736886386571,3.29479352,3223.7,3223.6,43.54805932]
[1736886386774,0.31036,3223.8,3223.7,0.31037]
[1736886386976,6.65573548,3224.1,3223.6,43.23767932]
[1736886387178,3.75830548,3223.7,3223.6,43.54804932]
[1736886387381,0.31037,3223.7,3223.6,43.54804932]
[1736886387678,3.87946851,3223.7,3223.6,41.11037]
[1736886388173,3.87946851,3223.7,3223.6,40.8]
[1736886388383,6.77689851,3223.7,3223.2,2.43767932]
[1736886388571,6.77689851,3223.7,3222.7,0.77615]
[1736886388572,3.2078,3223.3,3222.7,0.31046]
[1736886388770,3.2078,3223.3,3222.6,3.2078]
[1736886388771,0.31046,3222.7,3222.6,3.2078]
[1736886389075,0.31046,3222.7,3222.6,40.8]
[1736886389274,3.71878889,3222.7,3222.6,40.8]
[1736886389866,3.40832889,3222.7,3221.9,6.12597932]
[1736886390072,3.2078,3222.5,3222.1,0.31052]
[1736886390277,0.31051,3222.3,3222.1,0.31052]
[1736886390481,0.31051,3222.3,3222.2,0.31051]
[1736886390875,3.27889258,3222.3,3221.9,5.64547932]
[1736886391080,3.58940258,3222.3,3222.0,0.31053]
[1736886391283,3.45546923,3222.4,3221.9,5.64547932]
[1736886391487,0.31053,3222.0,3221.5,3.52038]
[1736886391674,0.31053,3222.0,3221.5,3.2098]
[1736886391675,0.31056,3221.7,3221.5,3.2098]
[1736886392076,3.28514821,3221.6,3221.5,3.2098]
[1736886392377,3.28514821,3221.6,3221.5,3.52038]
[1736886392777,3.49549025,3221.8,3221.5,3.2098]
[1736886393076,0.4815,3222.2,3221.6,43.23767932]
[1736886393273,0.79201,3222.2,3221.9,5.64547932]
[1736886393475,3.38902534,3222.0,3221.9,3.2078]
[1736886393673,3.38902534,3222.1,3221.9,3.2078]
[1736886393880,0.79202,3222.2,3222.0,0.31053]
[1736886394081,3.38902534,3222.1,3221.9,3.2078]
[1736886394281,3.38902534,3222.1,3222.0,0.31053]
[1736886395182,3.5183,3222.4,3221.9,3.2078]
[1736886395183,3.2078,3222.4,3221.9,5.64547932]
[1736886395385,3.2078,3222.4,3222.2,0.31051]
[1736886395583,3.52297145,3222.3,3222.2,0.31051]
[1736886396085,0.493,3222.6,3222.0,0.4506]
[1736886396086,3.52297145,3222.4,3222.3,0.3105]
[1736886396583,0.493,3222.6,3222.2,0.31051]
[1736886396779,3.45034475,3222.4,3222.0,0.4506]
[1736886396979,0.31049,3222.4,3222.3,40.8]
[1736886397279,0.31053,3222.0,3221.9,3.2078]
[1736886397485,0.31053,3222.1,3222.0,0.31053]
[1736886397689,0.31053,3222.1,3222.0,40.8]
[1736886397986,3.4281062,3222.1,3221.6,2.43767932]
[1736886398188,0.80274,3222.0,3221.9,0.31054]
[1736886398683,4.12786081,3222.0,3221.9,41.11054]
[1736886399181,4.12786081,3222.0,3221.9,40.8]
[1736886399579,4.12786081,3222.0,3221.9,41.11054]
[1736886399780,4.12786081,3222.0,3221.9,40.8]
[1736886400183,0.31057,3221.6,3221.5,0.002]
[1736886400384,0.31057,3221.6,3221.5,0.31258]
[1736886400588,3.65877226,3221.6,3221.5,0.31258]
[1736886400786,3.34820226,3221.6,3221.5,0.31258]
[1736886401591,3.65877226,3221.6,3221.5,0.002]
[1736886402494,4.15177226,3221.6,3221.5,0.002]
[1736886403093,4.15177226,3221.6,3221.5,40.802]
[1736886404184,3.34820226,3221.6,3221.5,41.11258]
[1736886404386,1.8042,3222.0,3221.5,40.802]
[1736886404592,0.31056,3221.8,3221.7,0.31055]
[1736886404790,3.49438628,3221.8,3221.5,40.802]
[1736886404988,0.31057,3221.6,3221.5,41.11257]
[1736886405690,0.31057,3221.6,3221.5,40.802]
[1736886406188,0.31057,3221.6,3221.5,0.002]
[1736886406392,3.91330085,3221.6,3221.5,0.002]
[1736886407594,3.60273085,3221.6,3221.5,0.31258]
[1736886407789,3.91330085,3221.6,3221.5,0.002]
[1736886407985,0.31057,3221.6,3221.5,0.002]
[1736886408295,3.25485354,3221.6,3221.5,0.31258]
[1736886408498,3.56542354,3221.6,3221.5,0.31258]
[1736886408793,0.31057,3221.6,3221.5,0.31258]
[1736886409095,3.78003329,3221.6,3221.5,0.002]
[1736886409288,3.78003329,3221.6,3221.5,0.31258]
[1736886409487,3.78003329,3221.6,3221.5,0.002]
[1736886410088,3.78003329,3221.6,3221.5,0.31258]
[1736886411103,3.78003329,3221.6,3221.5,0.002]
[1736886414198,3.78003329,3221.6,3221.5,0.31258]
[1736886414588,1.8052,3222.0,3221.5,0.002]
[1736886414797,0.31057,3221.7,3221.6,0.31056]
[1736886415096,3.60494646,3221.8,3221.7,0.31056]
[1736886415293,3.60494646,3221.9,3221.8,0.31055]
[1736886415499,0.31055,3221.9,3221.8,0.31055]
[1736886415795,0.31056,3221.8,3221.7,0.31056]
[1736886416395,3.53123815,3221.9,3221.6,0.79377]
[1736886416396,0.31056,3221.7,3221.6,0.79377]
[1736886416701,3.8850378,3221.7,3221.6,0.4832]
[1736886417394,3.8850378,3221.7,3221.6,0.79377]
[1736886419494,3.5744778,3221.7,3221.6,0.79377]
[1736886419707,0.31056,3221.8,3221.6,0.4832]
[1736886419892,0.31056,3221.8,3221.7,0.31056]
[1736886420190,0.493,3222.2,3221.8,0.31055]
[1736886420191,3.44685034,3221.9,3221.8,0.31055]
[1736886420393,3.2078,3222.9,3221.7,3.2078]
[1736886420595,3.2078,3222.9,3222.7,0.31045]
[1736886420596,0.4936,3222.8,3222.7,0.31045]
[1736886420796,0.80405,3222.8,3222.7,0.31045]
[1736886420991,0.4936,3222.8,3222.5,0.5003]
[1736886421198,0.31047,3222.6,3222.5,0.5003]
[1736886421387,0.31047,3222.6,3222.5,0.81078]
[1736886421997,0.31047,3222.6,3222.5,0.5003]
[1736886422191,0.31048,3222.5,3222.4,3.2078]
[1736886422399,0.31051,3222.3,3222.2,0.31051]
[1736886423596,0.4936,3222.8,3222.0,6.10247932]
[1736886423796,0.31052,3222.2,3222.0,6.10247932]
[1736886424001,0.31051,3222.3,3222.1,0.31051]
[1736886424595,0.31051,3222.3,3222.2,0.31051]
[1736886424795,0.31051,3222.2,3222.1,0.31052]
[1736886426096,0.31051,3222.2,3221.5,41.57846]
[1736886426097,0.31055,3221.9,3221.5,3.2098]
[1736886426398,4.32155153,3222.2,3221.6,0.4949]
[1736886426399,0.31056,3221.7,3221.6,0.4949]
[1736886426703,0.31057,3221.6,3221.5,40.802]
[1736886427403,3.30987374,3221.7,3221.5,40.802]
[1736886427599,4.1673,3222.1,3221.6,2.43767932]
[1736886427800,0.4777,3222.7,3221.5,40.802]
[1736886427801,0.7762,3222.6,3221.9,5.64547932]
[1736886428007,0.3105,3222.3,3222.2,0.31051]
[1736886428303,1.2739,3222.6,3222.0,0.4551]
[1736886428304,4.00822524,3222.6,3222.0,0.9198]
[1736886428693,0.31049,3222.4,3222.3,0.3105]
[1736886429002,0.31048,3222.5,3222.2,2.74817932]
[1736886429302,0.3105,3222.3,3222.2,2.74817932]
[1736886430300,0.3105,3222.4,3222.3,0.3105]
[1736886430504,0.4977,3222.6,3222.3,0.3105]
[1736886430702,3.46066987,3222.5,3222.4,0.31049]
[1736886430903,3.2078,3222.7,3222.4,0.31049]
[1736886431103,0.31048,3222.5,3222.4,0.31049]
[1736886432008,0.31049,3222.4,3222.3,0.3105]
[1736886433805,0.3105,3222.3,3222.2,2.74818932]
[1736886434118,0.31053,3222.0,3221.9,3.51834]
[1736886434604,3.59270161,3222.0,3221.9,3.51834]
[1736886434911,0.31049,3222.4,3222.0,1.08687]
[1736886435111,0.31048,3222.5,3222.4,0.31049]
[1736886435912,0.31048,3222.5,3222.3,0.31049]
[1736886436206,0.31049,3222.5,3222.3,0.31049]
[1736886436510,0.31049,3222.4,3222.3,0.31049]
[1736886437412,3.59270161,3222.6,3222.1,2.89847932]
[1736886437715,0.31049,3222.5,3222.4,0.31049]
[1736886437913,3.59270161,3222.6,3222.1,2.89847932]
[1736886438118,3.443171,3222.5,3221.9,3.2078]
[1736886438411,0.31056,3221.8,3221.7,0.31056]
[1736886438609,0.31055,3221.9,3221.8,0.31055]
[1736886439208,0.31054,3222.0,3221.9,0.31053]
[1736886439403,0.31054,3222.0,3221.9,0.31054]
[1736886439607,3.7424909,3222.1,3221.9,3.2078]
[1736886439803,0.7959,3222.4,3222.3,0.3105]
[1736886440005,0.4517,3222.6,3222.3,2.43767932]
[1736886440210,0.31049,3222.4,3222.3,2.74817932]
[1736886440415,0.31049,3222.5,3222.4,0.31049]
[1736886440612,0.4517,3222.6,3222.5,0.31048]
[1736886440813,0.31046,3222.8,3222.7,0.31046]
[1736886441012,0.4517,3223.3,3222.5,3.2078]
[1736886441214,0.31045,3222.9,3222.8,0.31045]
[1736886441419,0.31045,3222.9,3222.8,41.11045]
[1736886441918,0.31045,3222.9,3222.8,0.31045]
[1736886442112,3.59744724,3223.0,3222.5,3.2078]
[1736886442310,3.59744724,3223.0,3222.6,40.8]
[1736886442505,3.59744724,3223.0,3222.8,0.31045]
[1736886442506,0.31046,3222.9,3222.8,0.31045]
[1736886443013,3.59744724,3223.0,3222.6,40.8]
[1736886443214,0.31046,3222.9,3222.8,0.31045]
[1736886443414,3.59744724,3223.0,3222.6,40.8]
[1736886443617,0.31045,3222.9,3222.8,0.31045]
[1736886444013,3.59744724,3223.0,3222.6,40.8]
[1736886444220,0.31046,3222.7,3222.6,40.8]
[1736886444515,3.79094249,3222.7,3222.6,0.31047]
[1736886445013,0.31047,3222.6,3222.5,3.51828]
[1736886445414,3.79095249,3222.6,3222.5,3.51828]
[1736886448225,3.48048249,3222.6,3222.5,3.51828]
[1736886448421,0.31047,3222.7,3222.6,0.31047]
[1736886448822,0.4547,3222.8,3222.5,3.2078]
[1736886449022,0.31047,3222.6,3222.5,3.51828]
[1736886450021,4.1236,3223.1,3222.5,3.2078]
[1736886450226,3.667,3223.1,3222.7,2.43767932]
[1736886450424,3.912653,3222.9,3222.8,0.31045]
[1736886450730,0.31046,3222.8,3222.7,0.31046]
[1736886450919,0.31046,3222.7,3222.6,0.78787]
[1736886451320,0.31045,3222.9,3222.8,0.31045]
[1736886451521,3.39555858,3223.0,3222.9,0.31045]
[1736886452629,0.4548,3223.3,3222.7,2.43767932]
[1736886452826,0.4548,3223.3,3222.6,1.25358]
[1736886452827,3.61164123,3223.5,3223.0,2.43767932]
[1736886453022,0.87484123,3223.8,3223.3,2.43767932]
[1736886453222,0.78137,3223.8,3223.7,0.31037]
[1736886453423,0.78137,3223.8,3223.3,2.43767932]
[1736886453424,3.74610998,3223.8,3223.3,2.43767932]
[1736886453721,0.31039,3223.6,3223.5,0.31038]
[1736886454121,3.74610998,3223.8,3223.4,40.8]
[1736886454339,0.31037,3223.7,3223.6,0.31037]
[1736886454626,0.31039,3223.6,3223.5,0.31038]
[1736886454925,3.83479489,3223.7,3223.6,0.31038]
[1736886455129,3.52441489,3223.7,3223.4,40.8]
[1736886455335,0.31039,3223.5,3223.4,41.11039]
[1736886455828,0.31039,3223.5,3223.4,40.8]
[1736886456218,9.89717588,3223.5,3222.6,3.2078]
[1736886456422,0.31044,3223.0,3222.6,3.2078]
[1736886456720,0.31046,3222.9,3222.8,0.31045]
[1736886457421,0.9426,3223.1,3222.6,3.2078]
[1736886457628,3.2078,3223.5,3223.0,5.64547932]
[1736886457831,1.55134,3224.8,3223.6,0.31037]
[1736886457832,0.31038,3223.7,3223.6,0.31037]
[1736886458127,0.31038,3223.6,3223.5,0.31037]
[1736886458327,0.31038,3223.6,3223.5,40.8]
[1736886458632,0.31038,3223.6,3223.5,41.11039]
[1736886459029,0.31038,3223.6,3223.5,40.8]
[1736886459530,0.31038,3223.6,3223.5,41.11039]
[1736886460625,0.31038,3223.6,3223.5,0.31039]
[1736886460931,0.31039,3223.5,3223.4,0.79129]
[1736886461233,0.31039,3223.5,3223.4,41.59129]
[1736886461431,0.31039,3223.5,3223.4,0.79129]
[1736886461626,3.2416024,3223.5,3223.1,0.4841]
[1736886461930,0.31041,3223.3,3223.2,0.31041]
[1736886462736,0.77597,3223.6,3223.1,0.4841]
[1736886462933,0.31042,3223.2,3223.1,0.79452]
[1736886464933,3.56796187,3223.5,3223.1,0.4841]
[1736886465234,1.31,3224.2,3223.1,0.4841]
[1736886465235,0.31034,3224.0,3223.9,0.31035]
[1736886465433,0.4723,3224.1,3223.6,3.40777932]
[1736886465735,0.31036,3223.8,3223.7,0.31036]
[1736886466131,3.68837097,3223.8,3223.7,0.31036]
[1736886467934,0.31037,3223.7,3223.6,1.28047]
[1736886468129,0.31037,3223.7,3223.6,0.4849]
[1736886469332,0.31037,3223.7,3223.6,0.79528]
[1736886469635,3.68837097,3223.8,3223.7,0.31037]
[1736886469927,0.31037,3223.7,3223.6,0.4849]
[1736886470732,0.31039,3223.5,3223.4,3.2078]
[1736886472230,0.31039,3223.5,3223.4,3.5182]
[1736886473432,0.31039,3223.5,3223.4,3.2078]
[1736886473835,0.31042,3223.3,3223.2,0.31041]
[1736886474229,3.29098768,3223.5,3223.0,3.2078]
[1736886474436,3.29098768,3223.5,3223.4,2.74807932]
[1736886474938,0.4828,3224.1,3224.0,0.31034]
[1736886475233,0.79313,3224.1,3224.0,41.11034]
[1736886475437,3.6686,3224.5,3224.0,43.23767932]
[1736886475738,3.56324326,3224.4,3224.3,2.43767932]
[1736886475940,3.56324326,3224.4,3224.3,0.31031]
[1736886476126,4.04604326,3224.7,3224.1,1.25352]
[1736886476326,0.79308,3224.7,3224.6,0.31028]
[1736886476530,0.79308,3224.7,3224.3,2.43767932]
[1736886476531,0.4828,3224.7,3224.3,2.43767932]
[1736886476833,0.31029,3224.6,3224.5,0.31029]
[1736886477236,3.89752187,3224.6,3224.5,0.31029]
[1736886477436,3.58723187,3224.6,3224.5,0.31029]
[1736886477836,3.89751187,3224.6,3224.5,0.31029]
[1736886478030,3.58723187,3224.6,3224.5,0.31029]
[1736886478540,3.89751187,3224.6,3224.5,0.31029]
[1736886480137,3.58723187,3224.6,3224.5,0.31029]
[1736886480941,0.31027,3224.7,3224.6,0.31028]
[1736886481130,0.31027,3224.7,3224.3,5.64547932]
[1736886481131,0.958,3225.0,3224.7,0.31026]
[1736886481335,3.24392821,3224.9,3224.8,0.31026]
[1736886481740,0.4516,3225.3,3224.8,3.2078]
[1736886481940,3.705,3225.5,3225.4,0.3102]
[1736886482149,3.2078,3225.5,3225.4,0.3102]
[1736886482347,0.31017,3225.8,3225.6,0.31018]
[1736886482536,0.4655,3225.9,3225.6,2.43767932]
[1736886482736,0.31017,3225.8,3225.6,2.74785932]
[1736886482944,0.4655,3225.9,3225.6,2.43767932]
[1736886483341,0.31017,3225.8,3225.6,2.74785932]
[1736886483543,0.77566,3225.9,3225.6,2.74785932]
[1736886484040,0.4655,3225.9,3225.6,2.43767932]
[1736886484248,3.51793,3226.2,3225.9,0.31016]
[1736886484447,0.793,3226.5,3226.3,0.31012]
[1736886484649,0.4829,3226.5,3226.3,0.31012]
[1736886484947,4.02753937,3226.5,3226.3,0.31012]
[1736886485350,3.71743937,3226.5,3226.0,2.90607932]
[1736886485554,3.71743937,3226.5,3226.1,0.31013]
[1736886485555,0.31012,3226.4,3226.1,0.31013]
[1736886486055,4.02753937,3226.5,3226.2,0.31012]
[1736886486251,3.71743937,3226.5,3226.1,0.31013]
[1736886486451,0.31011,3226.4,3226.1,0.31013]
[1736886487156,3.71743937,3226.5,3226.1,0.31013]
[1736886487557,0.31012,3226.4,3226.1,0.31013]
[1736886488354,3.71743937,3226.5,3226.0,2.90607932]
[1736886488355,3.71743937,3226.5,3226.3,2.43767932]
[1736886488658,0.31008,3226.7,3226.4,0.31011]
[1736886488960,4.157,3227.0,3226.4,0.4725]
[1736886489151,3.29297422,3226.9,3226.8,0.31007]
[1736886489350,1.25925,3227.0,3226.7,0.31008]
[1736886489851,0.31003,3227.3,3227.0,0.31004]
[1736886490153,3.36471238,3227.3,3226.9,2.43767932]
[1736886490355,3.36471238,3227.3,3226.9,2.74773932]
[1736886490657,0.31004,3227.1,3226.9,2.74773932]
[1736886491052,3.36471238,3227.3,3226.9,2.43767932]
[1736886491258,3.36471238,3227.3,3226.9,2.74773932]
[1736886491259,0.31004,3227.1,3226.9,2.74773932]
[1736886491949,0.31005,3227.0,3226.9,2.43767932]
[1736886492153,3.98286,3227.4,3226.6,5.64547932]
[1736886492355,0.31008,3226.7,3226.3,2.43767932]
[1736886492554,3.51787,3226.8,3226.6,0.31009]
[1736886492758,0.78277,3226.9,3226.7,0.31008]
[1736886492952,0.4727,3226.9,3226.8,0.31007]
[1736886493150,0.31006,3227.0,3226.7,0.31008]
[1736886493353,3.6805,3227.4,3226.7,0.31008]
[1736886493554,3.51380361,3226.9,3226.4,3.6803]
[1736886493757,0.31009,3226.6,3226.4,0.7826]
[1736886494058,0.31009,3226.6,3226.4,0.4725]
[1736886494259,0.31008,3226.7,3226.4,0.4725]
[1736886494451,0.31009,3226.6,3226.4,0.7826]
[1736886495154,0.31008,3226.7,3226.4,0.7826]
[1736886495354,0.4727,3226.8,3226.4,0.7826]
[1736886495660,3.42593829,3226.7,3226.4,0.4725]
[1736886495859,0.3101,3226.6,3226.4,0.7826]
[1736886496563,0.3101,3226.5,3226.4,0.7826]
[1736886496764,0.31009,3226.6,3226.4,0.7826]
[1736886496954,3.42593829,3226.7,3226.3,0.31011]
[1736886497264,0.31015,3226.1,3225.9,0.77425]
[1736886497458,0.77528,3226.5,3225.9,0.4641]
[1736886497657,0.31017,3225.8,3225.6,0.31018]
[1736886497858,3.98313,3226.2,3225.5,2.43767932]
[1736886498053,0.31019,3225.5,3225.4,0.4739]
[1736886498556,3.52621795,3225.9,3225.2,2.43767932]
[1736886498557,0.9797,3225.9,3225.2,2.43767932]
[1736886498765,3.34276188,3225.5,3225.1,44.0078]
[1736886498957,3.34276188,3225.5,3225.4,0.3102]
[1736886498958,0.3102,3225.5,3225.4,0.3102]
[1736886499356,0.9797,3225.9,3225.2,2.43767932]
[1736886499563,0.31019,3225.6,3225.4,0.3102]
[1736886500259,0.31018,3225.7,3225.5,0.31019]
[1736886500662,3.23762867,3225.6,3225.5,0.31019]
[1736886500859,3.54781867,3225.6,3225.2,2.43767932]